fUST/lending_fUST_20260111
["ID","MTS","AMOUNT","RATE_DAILY","PERIOD"]
[401309082,1768125041693,-500.0,0.00013699,2]
[401309084,1768125041702,-500.0,0.00013699,2]
[401309086,1768125041712,-500.0,0.00013699,2]
[401309088,1768125041721,-500.0,0.00013699,2]
[401309090,1768125041731,-366.95119537,0.00013699,2]
[401309092,1768125041740,-500.0,0.00013699,2]
[401309094,1768125041749,-500.0,0.00013699,2]
[401309096,1768125041758,-500.0,0.00013699,2]
[401309098,1768125041768,-268.13097792,0.00013699,2]
[401309100,1768125041777,-500.0,0.00013699,2]
[401309102,1768125041786,-500.0,0.00013699,2]
[401309104,1768125041794,-501.32276914,0.00013699,2]
[401309106,1768125041803,-500.0,0.00013699,2]
[401309107,1768125041812,-500.0,0.00013699,2]
[401309109,1768125041822,-500.0,0.00013699,2]
[401309111,1768125041832,-500.0,0.00013699,2]
[401309113,1768125041841,-616.44,0.000137,2]
[401309115,1768125041850,-178.09775665,0.00013821,2]
[401309117,1768125041859,-1000.0,0.00013821,2]
[401309119,1768125041868,-1002.2053155,0.00013821,2]
[401309121,1768125041878,-501.6206004,0.00013821,2]
[401309123,1768125041888,-502.34729237,0.00013821,2]
[401309125,1768125041897,-1000.0,0.00013821,2]
[401309127,1768125041906,-1000.0,0.00013821,2]
[401309129,1768125041915,-1000.0,0.00013821,2]
[401309131,1768125041925,-1000.0,0.00013821,2]
[401309133,1768125041934,-1000.0,0.00013821,2]
[401309135,1768125041943,-1000.0,0.00013821,2]
[401309137,1768125041953,-1000.0,0.00013821,2]
[401309139,1768125041963,-1046.83647191,0.00013821,2]
[401309141,1768125041972,-1113.91769968,0.00013821,2]
[401309142,1768125041981,-1000.0,0.00013821,2]
[401309145,1768125042071,-506.38443798,0.00013821,2]
[401309146,1768125042090,-1000.0,0.00013821,2]
[401309147,1768125042100,-1000.0,0.00013821,2]
[401309148,1768125042109,-1000.0,0.00013821,2]
[401309149,1768125042118,-1000.0,0.00013821,2]
[401309150,1768125042128,-1000.0,0.00013821,2]
[401309151,1768125042137,-1000.0,0.00013821,2]
[401309152,1768125042146,-1000.0,0.00013821,2]
[401309153,1768125042155,-1000.0,0.00013821,2]
[401309154,1768125042165,-1000.0,0.00013821,2]
[401309155,1768125042174,-1000.0,0.00013821,2]
[401309156,1768125042183,-1000.0,0.00013821,2]
[401309157,1768125042196,-1000.0,0.00013821,2]
[401309158,1768125042205,-1000.0,0.00013821,2]
[401309159,1768125042216,-1000.0,0.00013821,2]
[401309160,1768125042225,-1000.0,0.00013821,2]
[401309161,1768125042236,-1000.0,0.00013821,2]
[401309162,1768125042245,-1000.0,0.00013821,2]
[401309163,1768125042255,-973.2526551,0.00013821,2]
[401309164,1768125042264,-1002.56714759,0.00013821,2]
[401309165,1768125042274,-877.75810228,0.00013821,2]
[401309166,1768125042283,-1000.0,0.00013821,2]
[401309167,1768125042293,-1000.0,0.00013821,2]
[401309168,1768125042302,-1000.0,0.00013821,2]
[401309169,1768125042312,-1000.0,0.00013821,2]
[401309170,1768125042321,-1000.0,0.00013821,2]
[401309171,1768125042330,-1000.0,0.00013821,2]
[401309172,1768125042340,-1152.0,0.00014046,2]
[401309173,1768125042349,-616.44,0.000142,2]
[401309174,1768125042358,-875.35271766,0.00014247,2]
[401309175,1768125042367,-1000.0,0.00014247,2]
[401309176,1768125042376,-1000.0,0.00014247,2]
[401309177,1768125042385,-1000.0,0.00014247,2]
[401309178,1768125042394,-1001.8641087,0.00014247,2]
[401309179,1768125042402,-1000.0,0.00014247,2]
[401309180,1768125042410,-1000.0,0.00014247,2]
[401309181,1768125042418,-171.67593478,0.00014247,2]
[401309182,1768125042426,-1000.0,0.00014247,2]
[401309183,1768125042435,-1000.0,0.00014247,2]
[401309184,1768125042444,-1000.0,0.00014247,2]
[401309185,1768125042453,-1000.0,0.00014247,2]
[401309186,1768125042462,-1000.0,0.00014247,2]
[401309187,1768125042472,-1002.38932755,0.00014247,2]
[401309188,1768125042481,-661.478767,0.00014247,2]
[401309189,1768125042490,-1000.0,0.00014247,2]
[401309190,1768125042499,-469.53593685,0.00014247,2]
[401309191,1768125042509,-1029.61129365,0.00014247,2]
[401309192,1768125042518,-1000.0,0.00014247,2]
[401309193,1768125042527,-1000.0,0.00014247,2]
[401309194,1768125042535,-1003.14554213,0.00014247,2]
[401309195,1768125042545,-1000.0,0.00014247,2]
[401309196,1768125042554,-1000.62599215,0.00014247,2]
[401309197,1768125042564,-1000.0,0.00014247,2]
[401309198,1768125042573,-1000.0,0.00014247,2]
[401309200,1768125042582,-1000.0,0.00014247,2]
[401309202,1768125042591,-1000.0,0.00014247,2]
[401309204,1768125042601,-1000.0,0.00014247,2]
[401309206,1768125042610,-313.64870907,0.00014247,2]
[401309208,1768125042619,-1000.0,0.00014247,2]
[401309209,1768125042629,-1000.0,0.00014247,2]
[401309211,1768125042639,-283.3787305,0.00014247,2]
[401309212,1768125042648,-1000.0,0.00014247,2]
[401309213,1768125042657,-500.0,0.00014247,2]
[401309214,1768125042667,-1000.0,0.00014247,2]
[401309215,1768125042676,-1000.0,0.00014247,2]
[401309216,1768125042685,-1000.0,0.00014247,2]
[401309217,1768125042694,-1000.0,0.00014247,2]
[401309218,1768125042704,-1000.0,0.00014247,2]
[401309219,1768125042713,-1000.0,0.00014247,2]
[401309220,1768125042722,-1000.0,0.00014247,2]
[401309221,1768125042731,-638.41119879,0.00014247,2]
[401309222,1768125042741,-1000.0,0.00014247,2]
[401309223,1768125042750,-1000.0,0.00014247,2]
[401309224,1768125042759,-1000.0,0.00014247,2]
[401309225,1768125042768,-500.0,0.00014247,2]
[401309226,1768125042778,-443.77041137,0.00014247,2]
[401309227,1768125042787,-1000.0,0.00014247,2]
[401309228,1768125042796,-505.42705469,0.00014247,2]
[401309229,1768125042805,-1000.0,0.00014247,2]
[401309230,1768125042815,-1000.0,0.00014247,2]
[401309231,1768125042824,-1000.0,0.00014247,2]
[401309232,1768125042833,-1000.0,0.00014247,2]
[401309233,1768125042842,-793.78310386,0.00014368,2]
[401309234,1768125042851,-1512.80470062,0.00014368,2]
[401309235,1768125042860,-1500.0,0.00014368,2]
[401309236,1768125042869,-1500.0,0.00014368,2]
[401309237,1768125042878,-323.03430659,0.00014368,2]
[401309238,1768125042888,-554.02767991,0.00014368,2]
[401309239,1768125042897,-1500.0,0.00014368,2]
[401309240,1768125042906,-500.80134157,0.00014368,2]
[401309241,1768125042916,-1500.0,0.00014368,2]
[401309242,1768125042926,-1500.0,0.00014368,2]
[401309243,1768125042935,-1500.0,0.00014368,2]
[401309244,1768125042945,-1500.0,0.00014368,2]
[401309245,1768125042955,-263.96834089,0.00014368,2]
[401309246,1768125042965,-168.36851892,0.00014368,2]
[401309247,1768125042974,-1500.0,0.00014368,2]
[401309248,1768125042983,-1500.0,0.00014368,2]
[401309249,1768125042993,-500.0,0.00014368,2]
[401309250,1768125043002,-1500.0,0.00014368,2]
[401309251,1768125043011,-1500.0,0.00014368,2]
[401309252,1768125043021,-1500.0,0.00014368,2]
[401309253,1768125043030,-1500.0,0.00014368,2]
[401309254,1768125043045,-1500.0,0.00014368,2]
[401309256,1768125043059,-500.0,0.00014368,2]
[401309257,1768125043072,-1500.0,0.00014368,2]
[401309258,1768125043086,-1500.0,0.00014368,2]
[401309259,1768125043097,-500.0,0.00014368,2]
[401309260,1768125043110,-1500.0,0.00014368,2]
[401309261,1768125043123,-223.48736773,0.00014368,2]
[401309262,1768125043136,-1500.0,0.00014368,2]
[401309263,1768125043150,-1500.0,0.00014368,2]
[401309264,1768125043163,-1000.0,0.00014479,2]
[401309265,1768125043175,-244.0,0.00014479,2]
[401309266,1768125043191,-5000.0,0.0001451,2]
[401309267,1768125043205,-500.0,0.00014642,2]
[401309268,1768125043218,-176.23516734,0.00014642,2]
[401309269,1768125043233,-500.0,0.00014642,2]
[401309270,1768125043245,-500.0,0.00014642,2]
[401309271,1768125043257,-500.0,0.00014642,2]
[401309272,1768125043270,-171.65605742,0.00014642,2]
[401309273,1768125043283,-616.44,0.000147,2]
[401309274,1768125043296,-100000.0,0.00014736,2]
[401309275,1768125043310,-500.0,0.00014779,2]
[401309276,1768125043321,-503.05659276,0.00014779,2]
[401309277,1768125043331,-500.0,0.00014779,2]
[401309278,1768125043343,-598.52490689,0.00014779,2]
[401309279,1768125043357,-155.09397851,0.00014795,2]
[401309282,1768125043370,-1514.12213244,0.00014795,2]
[401309284,1768125043383,-1640.95571878,0.00014795,2]
[401309286,1768125043396,-1500.0,0.00014795,2]
[401309287,1768125043411,-488.64589349,0.00014795,2]
[401309288,1768125043424,-1500.0,0.00014795,2]
[401309291,1768125043437,-674.14847626,0.00014795,2]
[401309292,1768125043450,-501.33075681,0.00014795,2]
[401309293,1768125043461,-1640.84533084,0.00014795,2]
[401309294,1768125043472,-602.53259662,0.00014795,2]
[401309296,1768125043483,-1500.0,0.00014795,2]
[401309298,1768125043493,-1499.24471264,0.00014795,2]
[401309300,1768125043506,-514.14829436,0.00014795,2]
[401309302,1768125043520,-1001.3782102,0.00014795,2]
[401309304,1768125043533,-1236.28209818,0.00014795,2]
[401309305,1768125043543,-1000.0,0.00014795,2]
[401309307,1768125043554,-839.58703801,0.00014795,2]
[401309309,1768125043566,-661.95893033,0.00014795,2]
[401309311,1768125043579,-1500.0,0.00014795,2]
[401309313,1768125043590,-1500.0,0.00014795,2]
[401309314,1768125043601,-1608.00999349,0.00014795,2]
[401309315,1768125043611,-1482.84709438,0.00014795,2]
[401309316,1768125043622,-788.05151213,0.00014795,2]
[401309317,1768125043634,-503.75899236,0.00014795,2]
[401309318,1768125043647,-1500.0,0.00014795,2]
[401309319,1768125043659,-1500.0,0.00014795,2]
[401309320,1768125043670,-500.76011771,0.00014795,2]
[401309321,1768125043682,-1500.0,0.00014795,2]
[401309322,1768125043693,-1500.0,0.00014795,2]
[401309323,1768125043703,-1003.80919542,0.00014795,2]
[401309324,1768125043717,-1516.76085072,0.00014795,2]
[401309325,1768125043730,-1500.0,0.00014795,2]
[401309326,1768125043742,-1500.0,0.00014795,2]
[401309327,1768125043754,-1500.0,0.00014795,2]
[401309328,1768125043765,-304.84096496,0.00014795,2]
[401309329,1768125043775,-179.07075974,0.00014916,2]
[401309330,1768125043787,-500.0,0.00014916,2]
[401309331,1768125043799,-500.0,0.00014916,2]
[401309332,1768125043812,-2000.0,0.00014916,2]
[401309333,1768125043823,-2000.0,0.00014916,2]
[401309334,1768125043836,-500.8125859,0.00014916,2]
[401309335,1768125043847,-1191.81021696,0.00014916,2]
[401309336,1768125043859,-1465.81779273,0.00014916,2]
[401309337,1768125043871,-650.76965904,0.00014916,2]
[401309338,1768125043883,-2000.0,0.00014916,2]
[401309339,1768125043894,-365.99256781,0.00014916,2]
[401309340,1768125043906,-2000.0,0.00014916,2]
[401309341,1768125043917,-2000.0,0.00014916,2]
[401309342,1768125043929,-1510.52551,0.00014916,2]
[401309343,1768125043940,-1001.19360014,0.00014916,2]
[401309344,1768125043951,-2000.0,0.00014916,2]
[401309345,1768125043963,-2000.0,0.00014916,2]
[401309346,1768125043975,-2000.0,0.00014916,2]
[401309347,1768125043987,-2000.0,0.00014916,2]
[401309348,1768125043999,-2000.0,0.00014916,2]
[401309349,1768125044010,-2000.0,0.00014916,2]
[401309350,1768125044022,-171.0,0.00015,2]
[401309351,1768125044034,-500.0,0.00015053,2]
[401309352,1768125044045,-500.0,0.00015053,2]
[401309353,1768125044057,-800.0,0.00015068,2]
[401309354,1768125044068,-263.97622948,0.0001519,2]
[401309355,1768125044079,-483.81749546,0.0001519,2]
[401309356,1768125044090,-500.0,0.0001519,2]
[401309357,1768125044101,-264.95729538,0.0001519,2]
[401309358,1768125044113,-632.14652217,0.00015225,2]
[401309359,1768125044124,-616.44,0.000153,2]
[401309360,1768125044135,-500.0,0.00015327,2]
[401309361,1768125044146,-2000.0,0.00015342,2]
[401309362,1768125044157,-2000.0,0.00015342,2]
[401309363,1768125044169,-1143.18421046,0.00015342,2]
[401309364,1768125044181,-500.0,0.00015342,2]
[401309365,1768125044194,-2000.0,0.00015342,2]
[401309366,1768125044206,-2000.0,0.00015342,2]
[401309367,1768125044217,-1004.51727604,0.00015342,2]
[401309368,1768125044229,-1501.01375621,0.00015342,2]
[401309369,1768125044241,-2000.0,0.00015342,2]
[401309371,1768125044382,-2000.0,0.00015342,2]
[401309373,1768125044392,-1144.01857865,0.00015342,2]
[401309374,1768125044402,-2000.0,0.00015342,2]
[401309375,1768125044413,-1613.0,0.00015451,2]
[401309376,1768125044424,-500.0,0.00015464,2]
[401309377,1768125044435,-2500.0,0.00015464,2]
[401309378,1768125044447,-2500.0,0.00015464,2]
[401309379,1768125044458,-2500.0,0.00015464,2]
[401309380,1768125044467,-2500.0,0.00015464,2]
[401309381,1768125044478,-1167.31327235,0.00015464,2]
[401309382,1768125044488,-2500.0,0.00015464,2]
[401309383,1768125044498,-501.72405702,0.00015464,2]
[401309384,1768125044511,-2500.0,0.00015464,2]
[401309385,1768125044523,-2500.0,0.00015464,2]
[401309386,1768125044534,-2228.00390276,0.00015464,2]
[401309387,1768125044545,-500.0,0.00015464,2]
[401309388,1768125044554,-2870.56440789,0.00015478,2]
[401309389,1768125044564,-500.0,0.00015601,2]
[401309390,1768125044573,-500.0,0.00015738,2]
[401309391,1768125044583,-1087.80747029,0.0001579,2]
[401309392,1768125044592,-616.44,0.000158,2]
[401309393,1768125044602,-500.0,0.00015875,2]
[401309394,1768125044612,-2500.0,0.0001589,2]
[401309395,1768125044622,-2500.0,0.0001589,2]
[401309396,1768125044633,-555.48898116,0.0001589,2]
[401309397,1768125044644,-2500.0,0.0001589,2]
[401309398,1768125044654,-1634.65901332,0.0001589,2]
[401309399,1768125044663,-2500.0,0.0001589,2]
[401309400,1768125044673,-2500.0,0.0001589,2]
[401309401,1768125044685,-1000.0,0.00015927,2]
[401309402,1768125044695,-492.0,0.00015927,2]
[401309403,1768125044706,-620.9785477,0.00016012,2]
[401309404,1768125044715,-3000.0,0.00016012,2]
[401309405,1768125044725,-3000.0,0.00016012,2]
[401309406,1768125044735,-3000.0,0.00016012,2]
[401309407,1768125044744,-3000.0,0.00016012,2]
[401309408,1768125044753,-3000.0,0.00016012,2]
[401309409,1768125044763,-3000.0,0.00016012,2]
[401309410,1768125044772,-3000.0,0.00016012,2]
[401309411,1768125044782,-1600.00734843,0.00016164,2]
[401309412,1768125044791,-616.44,0.000163,2]
[401309413,1768125044800,-468.6,0.00016438,2]
[401309414,1768125044810,-500.0,0.00016438,2]
[401309415,1768125044818,-500.0,0.00016438,2]
[401309416,1768125044828,-500.0,0.00016438,2]
[401309417,1768125044839,-500.0,0.00016438,2]
[401309418,1768125044850,-500.0,0.00016438,2]
[401309419,1768125044860,-500.0,0.00016438,2]
[401309420,1768125044870,-281.92486594,0.00016438,2]
[401309421,1768125044880,-500.0,0.00016438,2]
[401309422,1768125044889,-594.49843147,0.00016438,2]
[401309423,1768125044899,-1002.60955562,0.00016438,2]
[401309424,1768125044908,-1552.92932298,0.00016438,2]
[401309425,1768125044918,-3000.0,0.00016438,2]
[401309426,1768125044927,-3000.0,0.00016438,2]
[401309427,1768125044936,-3000.0,0.00016438,2]
[401309428,1768125044945,-260.15865923,0.00016438,2]
[401309429,1768125044955,-3500.0,0.0001656,2]
[401309430,1768125044964,-3462.04250286,0.0001656,2]
[401309431,1768125044974,-3500.0,0.0001656,2]
[401309432,1768125044984,-3500.0,0.0001656,2]
[401309433,1768125044993,-3500.0,0.0001656,2]
[401309434,1768125045003,-2500.0,0.0001656,2]
[401309435,1768125045012,-2500.0,0.0001656,2]
[401309436,1768125045022,-616.44,0.000168,2]
[401309437,1768125045031,-2078.16970935,0.00016986,2]
[401309438,1768125045040,-3500.0,0.00016986,2]
[401309439,1768125045050,-3500.0,0.00016986,2]
[401309440,1768125045060,-2258.0,0.00016996,2]
[401309441,1768125045070,-4000.0,0.00017108,2]
[401309442,1768125045080,-2378.46600243,0.00017108,2]
[401309443,1768125045090,-1000.0,0.00017108,2]
[401309444,1768125045100,-4000.0,0.00017108,2]
[401309445,1768125045110,-706.03377801,0.00017225,2]
[401309446,1768125045125,-616.44,0.000173,2]
[401309447,1768125045135,-5000.0,0.00017412,2]
[401309448,1768125045145,-1000.0,0.0001752,2]
[401309449,1768125045155,-791.0,0.0001752,2]
[401309450,1768125045166,-1067.54835774,0.00017534,2]
[401309451,1768125045175,-1000.0,0.00017534,2]
[401309452,1768125045184,-2500.0,0.00017656,2]
[401309453,1768125045197,-3400.70849444,0.00017656,2]
[401309454,1768125045206,-616.44,0.000178,2]
[401309455,1768125045215,-163.43551009,0.00018082,3]
[401309456,1768125045224,-1087.80747027,0.00018119,2]
[401309457,1768125045233,-616.44,0.000183,2]
[401309458,1768125045242,-468.6,0.00018313,2]
[401309459,1768125045252,-549.0,0.00018696,2]
[401309460,1768125045262,-5000.0,0.00018863,2]
[401309462,1768125045272,-616.44,0.000189,2]
[401309465,1768125045283,-303.10001603,0.000189,2]
[401309466,1768125045295,-303.10001603,0.00019089,2]
[401309467,1768125045306,-506.7938,0.00019178,2]
[401309468,1768125045317,-200.0,0.00019178,2]
[401309469,1768125045326,-13367.01,0.000192,2]
[401309470,1768125045335,-167.58,0.000192,2]
[401309471,1768125045345,-779.92103385,0.00019225,2]
[401309472,1768125045354,-1000.0,0.00019272,2]
[401309473,1768125045363,-1000.0,0.00019272,2]
[401309474,1768125045373,-303.10001603,0.00019278,2]
[401309475,1768125045382,-163.88,0.000193,2]
[401309476,1768125045391,-166.96,0.000193,2]
[401309477,1768125045400,-2140.41,0.000193,2]
[401309478,1768125045410,-616.44,0.000194,2]
[401309479,1768125045419,-303.10001603,0.00019467,2]
[401309480,1768125045428,-303.10001603,0.00019656,2]
[401309481,1768125045439,-454.65002405,0.00019845,4]
[401309482,1768125045449,-616.44,0.000199,2]
[401309483,1768125045458,-506.7938,0.0002,4]
[401309484,1768125045468,-151.97857558,0.0002,2]
[401309485,1768125045477,-454.65002405,0.00020034,4]
[401309486,1768125045486,-468.6,0.00020188,2]
[401309487,1768125045495,-454.65002405,0.00020223,4]
[401309488,1768125045505,-616.44,0.000204,2]
[401309489,1768125045514,-506.7938,0.00020411,5]
[401309490,1768125045523,-454.65002405,0.00020412,4]
[401309491,1768125045532,-1087.80747027,0.00020448,2]
[401309492,1768125045541,-2096.819629,0.00020548,2]
[401309493,1768125045551,-454.65002405,0.00020601,4]
[401309494,1768125045560,-151.0,0.000209,4]
[401309495,1768125045570,-616.44,0.000209,2]
[401309496,1768125045580,-151.0,0.000209,3]
[401309497,1768125045589,-1000.0,0.00021199,10]
[401309498,1768125045598,-1000.0,0.00021199,10]
[401309500,1768125045608,-579.0,0.00021199,10]
[401309501,1768125045617,-853.80828969,0.00021225,2]
[401309503,1768125045627,-2870.56440789,0.00021359,2]
[401309504,1768125045636,-616.44,0.000214,2]
[401309506,1768125045646,-1041.66666667,0.00021524,2]
[401309508,1768125045655,-160.21,0.000218,2]
[401309509,1768125045664,-616.44,0.000219,2]
[401309511,1768125045674,-152.90727816,0.00021918,2]
[401309512,1768125045684,-13367.01,0.00022,2]
[401309514,1768125045694,-468.6,0.00022064,2]
[401309515,1768125045703,-616.44,0.000224,2]
[401309516,1768125045713,-281.87,0.00022721,2]
[401309517,1768125045722,-1087.80747027,0.00022776,2]
[401309518,1768125045731,-616.44,0.00023,2]
[401309519,1768125045740,-234.89,0.00023031,2]
[401309520,1768125045749,-927.69554552,0.00023225,2]
[401309521,1768125045758,-1000.0,0.00023319,10]
[401309522,1768125045767,-1000.0,0.00023319,10]
[401309523,1768125045776,-1000.0,0.00023319,10]
[401309524,1768125045786,-616.44,0.000235,2]
[401309525,1768125045796,-468.6,0.00023939,2]
[401309526,1768125045805,-616.44,0.00024,2]
[401309527,1768125045815,-616.44,0.000245,2]
[401309528,1768125045825,-500.0,0.00024658,2]
[401309529,1768125045834,-500.0,0.00024795,2]
[401309530,1768125045843,-76526.0115688,0.000248,2]
[401309531,1768125045853,-163.313773,0.000249,7]
[401309532,1768125045862,-151.0,0.000249,7]
[401309533,1768125045871,-151.0,0.000249,7]
[401309534,1768125045881,-151.0,0.000249,7]
[401309535,1768125045890,-151.0,0.000249,7]
[401309536,1768125045900,-151.0,0.000249,7]
[401309537,1768125045909,-151.0,0.000249,7]
[401309538,1768125045919,-264.224,0.000249,7]
[401309539,1768125045929,-169.882376,0.000249,7]
[401309540,1768125045938,-264.224,0.000249,7]
[401309541,1768125045947,-264.224,0.000249,7]
[401309542,1768125045957,-264.224,0.000249,7]
[401309543,1768125045966,-161.096358,0.000249,7]
[401309544,1768125045975,-151.0,0.000249,7]
[401309545,1768125045985,-151.0,0.000249,7]
[401309546,1768125045994,-382.637039,0.000249,7]
[401309547,1768125046003,-382.637039,0.000249,7]
[401309548,1768125046015,-382.637039,0.000249,7]
[401309549,1768125046025,-382.637039,0.000249,7]
[401309550,1768125046034,-151.0,0.000249,7]
[401309551,1768125046043,-151.0,0.000249,7]
[401309552,1768125046052,-151.0,0.000249,7]
[401309553,1768125046062,-151.0,0.000249,7]
[401309554,1768125046072,-151.0,0.000249,7]
[401309555,1768125046082,-151.0,0.000249,7]
[401309556,1768125046091,-156.82101,0.000249,7]
[401309557,1768125046100,-151.0,0.000249,7]
[401309558,1768125046109,-151.0,0.000249,7]
[401309559,1768125046118,-151.0,0.000249,7]
[401309560,1768125046127,-151.0,0.000249,7]
[401309561,1768125046137,-151.0,0.000249,7]
[401309562,1768125046146,-151.0,0.000249,7]
[401309563,1768125046155,-151.0,0.000249,7]
[401309564,1768125046164,-151.0,0.000249,7]
[401309565,1768125046174,-400097.821185,0.000249,2]
[401309566,1768125046185,-728.329358,0.000249,7]
[401309567,1768125046197,-728.329358,0.000249,7]
[401309568,1768125046212,-728.329358,0.000249,7]
[401309569,1768125046221,-728.329358,0.000249,7]
[401309570,1768125046232,-160.002934,0.000249,7]
[401309571,1768125046241,-200.586455,0.000249,7]
[401309572,1768125046251,-151.0,0.000249,2]
[401309573,1768125046260,-151.0,0.000249,7]
[401309574,1768125046271,-151.0,0.000249,7]
[401309575,1768125046282,-161.662681,0.000249,7]
[401309576,1768125046293,-151.0,0.000249,7]
[401309577,1768125046303,-151.0,0.000249,7]
[401309578,1768125046313,-151.0,0.000249,7]
[401309579,1768125046323,-151.0,0.000249,7]
[401309580,1768125046334,-173.073557,0.000249,7]
[401309581,1768125046345,-151.0,0.000249,7]
[401309582,1768125046355,-151.0,0.000249,7]
[401309583,1768125046365,-151.0,0.000249,7]
[401309584,1768125046375,-173.073557,0.000249,7]
[401309585,1768125046385,-151.0,0.000249,7]
[401309586,1768125046396,-173.073557,0.000249,7]
[401309587,1768125046405,-173.073557,0.000249,7]
[401309588,1768125046415,-172.824008,0.000249,7]
[401309589,1768125046424,-151.0,0.000249,7]
[401309590,1768125046433,-151.0,0.000249,7]
[401309591,1768125046443,-151.0,0.000249,7]
[401309592,1768125046452,-151.0,0.000249,7]
[401309593,1768125046461,-1371.756404,0.000249,7]
[401309594,1768125046470,-151.0,0.000249,7]
[401309595,1768125046480,-1371.756404,0.000249,7]
[401309596,1768125046489,-1371.756404,0.000249,7]
[401309597,1768125046499,-1371.756404,0.000249,7]
[401309598,1768125046509,-151.0,0.000249,7]
[401309599,1768125046519,-151.0,0.000249,7]
[401309600,1768125046528,-151.0,0.000249,7]
[401309601,1768125046537,-500.0,0.00024932,2]
[401309602,1768125046546,-616.44,0.00025,2]
[401309603,1768125046556,-500.0,0.00025069,2]
[401309604,1768125046566,-1087.80747027,0.00025105,2]
[401309605,1768125046575,-250.0,0.00025205,2]
[401309606,1768125046585,-500.0,0.00025206,2]
[401309607,1768125046594,-1001.58280136,0.00025225,2]
[401309608,1768125046603,-500.0,0.00025343,2]
[401309609,1768125046613,-259.77529652,0.00025425,14]
[401309610,1768125046622,-500.0,0.0002548,2]
[401309611,1768125046631,-500.0,0.00025499,2]
[401309612,1768125046640,-616.44,0.000255,2]
[401309613,1768125046649,-500.0,0.00025617,2]
[401309614,1768125046659,-1000.0,0.00025651,10]
[401309615,1768125046668,-1000.0,0.00025651,10]
[401309616,1768125046679,-1000.0,0.00025651,10]
[401309617,1768125046690,-715.0,0.00025651,10]
[401309618,1768125046699,-350.0,0.00025753,2]
[401309619,1768125046708,-255.99235489,0.00025754,2]
[401309620,1768125046717,-468.6,0.00025814,2]
[401309621,1768125046727,-2000.51544348,0.0002587,2]
[401309622,1768125046736,-616.44,0.00026,2]
[401309623,1768125046744,-450.0,0.00026301,2]
[401309624,1768125046754,-616.44,0.000265,2]
[401309625,1768125046764,-550.0,0.00026849,2]
[401309626,1768125046774,-2140.41,0.000269,14]
[401309627,1768125046784,-183.0,0.00027068,23]
[401309628,1768125046795,-616.44,0.000271,2]
[401309629,1768125046806,-181.17141011,0.00027119,2]
[401309630,1768125046817,-337.12946704,0.00027196,2]
[401309631,1768125046918,-1348.51786817,0.00027196,2]
[401309632,1768125046928,-762.26582859,0.00027196,2]
[401309633,1768125046938,-409.85129166,0.00027196,2]
[401309634,1768125046947,-3034.16520338,0.00027196,2]
[401309635,1768125046956,-1075.4700572,0.00027225,2]
[401309636,1768125046966,-2870.56440789,0.00027239,2]
[401309637,1768125046975,-520.99033916,0.00027301,2]
[401309638,1768125046986,-702.10519323,0.00027397,5]
[401309639,1768125046995,-1087.80747027,0.00027434,2]
[401309640,1768125047004,-616.44,0.000276,2]
[401309641,1768125047013,-468.6,0.00027689,3]
[401309642,1768125047023,-300.0,0.00027836,2]
[401309643,1768125047033,-300.0,0.00027836,2]
[401309644,1768125047042,-300.0,0.00027836,2]
[401309645,1768125047052,-300.0,0.00027836,2]